bitfinex/quotes_BTCUSD_20260221
["timestamp","ask_amount","ask_price","bid_price","bid_amount"]
[1771664625930,0.02379913,68134.0,68127.0,0.07339233]
[1771664627860,0.02379913,68134.0,68127.0,0.06420879]
[1771664628512,0.02379913,68134.0,68127.0,0.06442879]
[1771664632529,0.02379913,68134.0,68123.0,0.47002945]
[1771664632530,0.02395981,68133.0,68124.0,0.07339493]
[1771664632734,0.02395981,68132.0,68123.0,0.0001242]
[1771664632968,0.02395981,68131.0,68124.0,0.07339557]
[1771664633786,0.07377651,68133.0,68120.0,0.29397598]
[1771664633787,0.07339003,68130.0,68120.0,0.00038]
[1771664633991,0.02395981,68128.0,68120.0,0.00038]
[1771664634317,0.02395981,68128.0,68120.0,0.07377972]
[1771664634711,0.02395981,68127.0,68120.0,0.07377972]
[1771664635156,0.02395981,68127.0,68120.0,0.00038]
[1771664635726,0.09735249,68127.0,68120.0,0.00038]
[1771664638667,0.02395981,68127.0,68120.0,0.07377954]
[1771664639518,0.02395981,68127.0,68122.0,0.07339712]
[1771664639732,0.07338826,68131.0,68121.0,0.0733981]
[1771664639948,0.07338826,68131.0,68122.0,0.07339772]
[1771664640681,0.07338826,68131.0,68123.0,0.15475604]
[1771664641081,0.0002,68135.0,68128.0,0.07339062]
[1771664641282,0.00028022,68135.0,68128.0,0.06348808]
[1771664642609,0.07338501,68134.0,68126.0,0.07339308]
[1771664643034,0.0002,68134.0,68127.0,0.07339233]
[1771664643434,0.09754493,68134.0,68126.0,0.07339335]
[1771664644549,0.0002,68134.0,68128.0,0.07339115]
[1771664644870,0.0002,68134.0,68122.0,0.00022]
[1771664645078,0.09734802,68131.0,68123.0,0.07339643]
[1771664645351,0.07338821,68131.0,68123.0,0.07339643]
[1771664645493,0.02395981,68130.0,68123.0,0.07339643]
[1771664648294,0.02395981,68130.0,68122.0,0.07361573]
[1771664648295,0.02395981,68130.0,68125.0,0.07339361]
[1771664648492,0.09734899,68130.0,68122.0,0.07361704]
[1771664648679,0.02395981,68130.0,68122.0,0.00022]
[1771664650147,0.02395981,68130.0,68124.0,0.07339346]
[1771664651456,0.02395981,68130.0,68126.0,0.07339328]
[1771664655933,0.02395981,68130.0,68125.0,0.07339424]
[1771664656129,0.02395981,68130.0,68123.0,0.07361633]
[1771664656729,0.02324566,68129.0,68123.0,0.00022]
[1771664657528,0.02324566,68129.0,68123.0,0.07361663]
[1771664658656,0.02308488,68129.0,68123.0,0.07361663]
[1771664658836,0.07339092,68129.0,68122.0,0.00022]
[1771664659014,0.02324566,68128.0,68122.0,0.00022]
[1771664659754,0.02324566,68128.0,68123.0,0.00022]
[1771664660939,0.02308488,68128.0,68123.0,0.00022]
[1771664663363,0.02308488,68128.0,68120.0,0.03990722]
[1771664663568,0.02324566,68128.0,68119.0,0.07340078]
[1771664663714,0.07339193,68128.0,68120.0,0.07339962]
[1771664664039,0.02292398,68127.0,68120.0,0.07339962]
[1771664664643,0.07371445,68127.0,68119.0,0.07340076]
[1771664664805,0.02324566,68126.0,68119.0,0.07340076]
[1771664665754,0.07339489,68125.0,68117.0,0.07340232]
[1771664665955,0.09663941,68126.0,68118.0,0.07340198]
[1771664667214,0.00032187,68125.0,68118.0,0.07340198]
[1771664668426,0.00032187,68125.0,68118.0,0.07362198]
[1771664669080,0.02356753,68125.0,68118.0,0.07362198]
[1771664669376,0.02338753,68125.0,68118.0,0.07362198]
[1771664670988,0.0967822,68125.0,68118.0,0.00022]
[1771664671196,0.07339572,68124.0,68118.0,0.00022]
[1771664671370,0.02324566,68123.0,68118.0,0.00022]
[1771664672576,0.02324566,68123.0,68118.0,0.07362201]
[1771664672951,0.02324566,68123.0,68118.0,0.00022]
[1771664673364,0.02324566,68121.0,68118.0,0.00022]
[1771664673701,0.02324566,68121.0,68118.0,0.07362182]
[1771664675986,0.00014187,68120.0,68118.0,0.07362182]
[1771664679045,0.00014187,68120.0,68118.0,0.00022]
[1771664680213,0.00014187,68120.0,68100.0,0.00038]
[1771664680214,0.07341604,68105.0,68100.0,0.00038]
[1771664680412,0.07341604,68105.0,68104.0,0.0001835]
[1771664680413,0.08853576,68105.0,68104.0,0.0001835]
[1771664680611,0.0247601,68105.0,68104.0,0.0001835]
[1771664681159,0.09817614,68105.0,68104.0,0.0001835]
[1771664681491,0.09817614,68105.0,68104.0,0.0005739]
[1771664682469,0.09817614,68105.0,68104.0,0.00043203]
[1771664683788,0.07341712,68104.0,68100.0,0.00038]
[1771664683973,0.09856738,68104.0,68100.0,0.00038]
[1771664684692,0.09856738,68104.0,68103.0,1e-08]
[1771664690723,0.09856738,68104.0,68093.0,0.00022]
[1771664690724,0.07342359,68098.0,68093.0,0.00022]
[1771664690925,0.07342211,68100.0,68094.0,0.06834666]
[1771664691128,0.16584297,68110.0,68096.0,0.06834666]
[1771664691129,0.0249201,68110.0,68096.0,0.06834666]
[1771664691293,0.00016,68110.0,68096.0,0.06873682]
[1771664691524,0.07341788,68104.0,68096.0,0.06873682]
[1771664691724,0.07341848,68103.0,68096.0,0.06873682]
[1771664693028,0.07341744,68104.0,68096.0,0.1421625]
[1771664694713,0.07341744,68104.0,68096.0,0.06873682]
[1771664695159,0.07341851,68103.0,68096.0,0.06873682]
[1771664695358,0.07341851,68103.0,68096.0,0.06895682]
[1771664696708,0.07341851,68103.0,68096.0,0.00061016]
[1771664696912,0.07341851,68103.0,68092.0,0.00022]
[1771664696913,0.0247601,68109.0,68091.0,0.14177723]
[1771664697031,0.07342065,68101.0,68093.0,0.07085446]
[1771664697997,0.00039016,68109.0,68090.0,0.00016]
[1771664697998,0.0734248,68097.0,68090.0,0.00016]
[1771664698799,0.07342389,68098.0,68090.0,0.07359211]
[1771664700007,0.07342481,68097.0,68090.0,0.00016]
[1771664700218,0.29368429,68101.0,68090.0,0.00016]
[1771664700389,0.31844439,68101.0,68090.0,0.00016]
[1771664700790,0.07342577,68096.0,68090.0,0.00016]
[1771664701060,0.07342497,68097.0,68090.0,0.00016]
[1771664701802,0.07342497,68097.0,68090.0,0.00038]
[1771664702246,0.07342497,68097.0,68090.0,0.00023381]
[1771664703078,0.07342467,68097.0,68090.0,0.00023381]
[1771664707372,0.0002,68104.0,68091.0,0.07485454]
[1771664707597,0.0002,68104.0,68093.0,0.07342828]
[1771664708088,0.0734182,68103.0,68093.0,0.07342828]
[1771664708296,0.07342094,68101.0,68093.0,0.07342828]
[1771664709494,0.07342094,68101.0,68093.0,0.07364828]
[1771664712220,0.07342094,68101.0,68093.0,0.00022]
[1771664714446,0.07342094,68101.0,68093.0,0.07364868]
[1771664715443,0.07342171,68100.0,68093.0,0.00022]
[1771664720004,0.07014171,68100.0,68093.0,7.382e-05]
[1771664725313,0.07342143,68100.0,68093.0,7.382e-05]
[1771664726540,0.07342275,68099.0,68093.0,7.382e-05]
[1771664726974,0.07342379,68098.0,68093.0,7.382e-05]
[1771664727174,0.07342278,68099.0,68093.0,7.382e-05]
[1771664728108,0.07342115,68101.0,68093.0,7.382e-05]
[1771664728309,0.07342148,68100.0,68093.0,7.382e-05]
[1771664729054,0.07362148,68100.0,68093.0,7.382e-05]
[1771664730512,0.07342279,68099.0,68093.0,7.382e-05]
[1771664731255,0.0734244,68098.0,68093.0,7.382e-05]
[1771664731453,0.02276127,68092.0,68089.0,0.00022]
[1771664732480,0.09619201,68092.0,68089.0,0.00022]
[1771664733084,0.07343197,68091.0,68089.0,0.00022]
[1771664733277,0.07343222,68090.0,68089.0,0.00022]
[1771664734343,0.09619324,68091.0,68089.0,0.00022]
[1771664734831,0.09619324,68091.0,68089.0,7.382e-05]
[1771664735503,0.07343222,68090.0,68089.0,7.382e-05]
[1771664737761,0.09642823,68090.0,68086.0,0.00022]
[1771664738683,0.02299601,68090.0,68086.0,0.00022]
[1771664738866,0.07342802,68094.0,68086.0,0.00022]
[1771664739308,0.07342879,68095.0,68086.0,0.00022]
[1771664739855,0.0964248,68095.0,68086.0,0.00022]
[1771664740060,0.0734291,68093.0,68086.0,0.00022]
[1771664741700,0.0002,68090.0,68086.0,0.00022]
[1771664743721,0.02299601,68089.0,68086.0,0.00022]
[1771664743939,0.02299601,68089.0,68085.0,0.00022]
[1771664745282,0.02299601,68088.0,68085.0,0.00022]
[1771664746421,0.02338617,68088.0,68082.0,0.00022]
[1771664748238,0.02299601,68086.0,68082.0,0.00022]
[1771664748439,0.02299601,68086.0,68085.0,0.00022]
[1771664749397,0.02299601,68085.0,68079.0,0.17662]
[1771664749687,0.07343545,68087.0,68080.0,1e-08]
[1771664749688,0.07344123,68082.0,68080.0,1e-08]
[1771664750866,0.02299601,68081.0,68080.0,1e-08]
[1771664751068,0.09643793,68081.0,68080.0,1e-08]
[1771664753214,0.09643793,68081.0,68079.0,0.00022]
[1771664753900,0.07344116,68082.0,68075.0,0.00022]
[1771664754104,0.07343949,68084.0,68076.0,0.0734473]
[1771664754506,0.07343949,68084.0,68075.0,0.14017233]
[1771664754964,0.07344046,68083.0,68075.0,0.14017233]
[1771664755286,0.07344046,68083.0,68080.0,0.00022]
[1771664760770,0.07343757,68087.0,68080.0,0.00022]
[1771664760977,0.07343757,68087.0,68077.0,0.07344624]
[1771664761218,0.07343757,68087.0,68079.0,0.07344394]
[1771664762251,0.00049965,68088.0,68080.0,0.07344195]
[1771664762488,0.07393438,68088.0,68080.0,0.00022]
[1771664762700,0.00036,68090.0,68080.0,0.00022]
[1771664762701,0.0002,68083.0,68081.0,0.07344192]
[1771664762824,0.02299601,68094.0,68081.0,0.00039016]
[1771664763019,0.07343132,68091.0,68082.0,0.07344008]
[1771664765624,0.07343132,68091.0,68083.0,0.07343954]
[1771664767334,0.07343225,68090.0,68081.0,0.00039016]
[1771664767506,0.07343345,68089.0,68081.0,0.07383188]
[1771664768075,0.07343252,68090.0,68082.0,0.07344077]
[1771664769038,0.0002,68089.0,68082.0,0.07344077]
[1771664769441,0.07363399,68089.0,68081.0,0.00039016]
[1771664769590,0.07343517,68088.0,68081.0,0.00039016]
[1771664772568,0.02472673,68099.0,68082.0,0.09022419]
[1771664772870,0.07342927,68093.0,68085.0,0.0734371]
[1771664775553,0.07342927,68093.0,68085.0,0.0234371]
[1771664775957,0.0002,68090.0,68086.0,0.07343649]
[1771664776217,0.0734299,68094.0,68086.0,0.07343649]
[1771664776420,0.0734299,68094.0,68085.0,0.07343722]
[1771664777055,0.07342915,68093.0,68085.0,0.07343722]
[1771664780579,0.07343012,68092.0,68084.0,0.0969802]
[1771664782704,0.07343187,68091.0,68081.0,0.07405005]
[1771664782926,0.07343187,68091.0,68082.0,0.07344012]
[1771664783659,0.07343278,68090.0,68082.0,0.07344012]
[1771664783860,0.07343187,68091.0,68081.0,0.07405005]
[1771664784111,0.07343396,68089.0,68081.0,0.07405005]
[1771664784314,0.07343396,68089.0,68081.0,0.00061016]
[1771664784632,0.0734348,68088.0,68081.0,0.00061016]
[1771664785078,0.0734348,68088.0,68081.0,0.07405205]
[1771664785276,0.0734348,68088.0,68081.0,0.00061016]
[1771664785277,0.07343626,68087.0,68081.0,0.00061016]
[1771664789183,0.29372745,68091.0,68082.0,0.07344002]
[1771664789184,0.07343181,68091.0,68082.0,0.07344002]
[1771664789439,0.07343181,68091.0,68082.0,0.09698354]
[1771664790153,0.07343223,68090.0,68082.0,0.09698354]
[1771664795298,0.07343223,68090.0,68082.0,0.09720354]
[1771664796608,0.07343223,68090.0,68082.0,0.07366002]
[1771664796816,0.0734334,68089.0,68082.0,0.00022]
[1771664805418,0.0732534,68089.0,68082.0,0.00022]
[1771664807508,0.07343075,68092.0,68082.0,0.07366082]
[1771664807706,0.07343136,68091.0,68083.0,0.07343977]
[1771664808459,0.07343218,68092.0,68082.0,0.07366046]
[1771664809105,0.0002,68090.0,68082.0,0.07366046]
[1771664809594,0.07363236,68090.0,68082.0,0.07366046]
[1771664813018,0.07343339,68089.0,68082.0,0.07366046]
[1771664813404,0.07343339,68089.0,68082.0,0.00022]
[1771664813721,0.07343513,68088.0,68082.0,0.00022]
[1771664826188,0.07343386,68089.0,68082.0,0.00022]
[1771664827118,0.07343439,68088.0,68082.0,0.00022]
[1771664827908,0.07343352,68089.0,68082.0,0.00022]
[1771664828478,0.07343451,68088.0,68082.0,0.00022]
[1771664830926,0.0734337,68089.0,68082.0,0.00022]
[1771664834755,0.0736337,68089.0,68082.0,0.00022]
[1771664844570,0.0002,68089.0,68082.0,0.00022]
[1771664844789,0.0002,68089.0,68082.0,0.07366051]
[1771664851108,0.07363335,68089.0,68082.0,0.07366051]
[1771664852709,0.07343835,68085.0,68081.0,0.00061016]
[1771664852912,0.0976837,68085.0,68080.0,0.0002]
[1771664853076,0.09774671,68085.0,68080.0,0.0002]
[1771664853270,6.301e-05,68085.0,68080.0,0.0002]
[1771664853696,6.301e-05,68085.0,68082.0,0.00022]
[1771664857144,0.02424535,68084.0,68080.0,0.0002]
[1771664857515,6.301e-05,68085.0,68080.0,0.0002]
[1771664860112,0.00026301,68085.0,68080.0,0.0002]
[1771664862249,0.07370094,68085.0,68080.0,0.0002]
[1771664862437,0.09739893,68085.0,68080.0,0.0002]
[1771664863064,0.07370094,68085.0,68080.0,0.0002]
[1771664863655,0.02369799,68084.0,68078.0,0.07344509]
[1771664863860,0.02369799,68084.0,68077.0,0.07344584]
[1771664864466,0.02369799,68084.0,68078.0,0.07344507]
[1771664865784,0.07343909,68084.0,68076.0,0.03906007]
[1771664865987,0.00026301,68085.0,68075.0,0.00022]
[1771664866137,0.07370067,68085.0,68077.0,0.07344517]
[1771664866338,0.00026301,68085.0,68080.0,0.00022]
[1771664876265,0.097399,68085.0,68080.0,0.00022]
[1771664877272,0.097399,68085.0,68077.0,0.07344548]
[1771664877273,0.07370101,68085.0,68077.0,0.07344548]
[1771664877475,0.02369799,68084.0,68078.0,0.07344511]
[1771664878795,0.00026301,68085.0,68076.0,0.07344648]
[1771664879003,0.00026301,68085.0,68078.0,0.0734451]
[1771664885007,0.00026301,68085.0,68077.0,0.07344589]
[1771664885598,0.07370154,68085.0,68077.0,0.07344589]
[1771664885790,0.07370154,68085.0,68073.0,0.29402055]
[1771664885791,0.07344641,68077.0,68070.0,0.1766]
[1771664886091,0.07344695,68077.0,68070.0,0.1766]
[1771664886292,0.02369799,68073.0,68068.0,0.00022]
[1771664887486,0.07345084,68073.0,68068.0,0.00022]
[1771664887640,0.09797749,68071.0,68068.0,0.00022]
[1771664887840,0.02452383,68071.0,68068.0,0.00022]
[1771664889050,0.07345346,68071.0,68068.0,0.00022]
[1771664889237,0.09842317,68070.0,68064.0,0.000124]
[1771664889440,0.0249685,68069.0,68064.0,0.000124]
[1771664892180,0.0249685,68069.0,68068.0,0.00022]
[1771664893204,0.0249685,68069.0,68062.0,0.00022]
[1771664893405,0.07345226,68072.0,68063.0,0.07346029]
[1771664893572,0.07345226,68072.0,68063.0,0.13000611]
[1771664894175,0.07345226,68072.0,68063.0,0.07346029]
[1771664894607,0.07345331,68071.0,68063.0,0.07346029]
[1771664896736,0.07345331,68071.0,68062.0,0.07368029]
[1771664897359,0.0249685,68070.0,68062.0,0.07368029]
[1771664897763,0.07345331,68071.0,68062.0,0.07368029]
[1771664899285,0.07345331,68071.0,68063.0,0.00022]
[1771664901398,0.09842232,68070.0,68063.0,0.00022]
[1771664908983,0.07345382,68070.0,68063.0,0.00022]
[1771664910672,0.07345382,68070.0,68063.0,0.07368121]
[1771664913334,0.07345382,68070.0,68063.0,0.00022]
[1771664913538,0.00016072,68069.0,68063.0,0.00022]
[1771664917158,0.0249685,68068.0,68062.0,0.00022]
[1771664917537,0.0249685,68068.0,68062.0,0.0736824]
[1771664919407,0.0249685,68068.0,68063.0,0.00022]
[1771664920467,0.00016072,68067.0,68063.0,0.00022]
[1771664923603,0.07361792,68067.0,68063.0,0.00022]
[1771664923824,0.07345884,68066.0,68063.0,0.00022]
[1771664924803,0.02288825,68064.0,68063.0,0.00022]
[1771664925040,0.02288825,68064.0,68062.0,0.00022]
[1771664926020,0.02288825,68064.0,68063.0,0.00022]
[1771664926628,0.07345838,68066.0,68063.0,0.00022]
[1771664926831,0.09634663,68066.0,68063.0,0.00022]
[1771664927034,0.09634663,68066.0,68063.0,5.928e-05]
[1771664928894,0.07345919,68065.0,68063.0,5.928e-05]
[1771664929100,0.09634744,68065.0,68063.0,5.928e-05]
[1771664929515,0.02288825,68064.0,68063.0,5.928e-05]
[1771664929874,0.02288825,68064.0,68058.0,0.000124]
[1771664929875,0.07346431,68061.0,68054.0,0.00022]
[1771664930083,0.07346397,68061.0,68054.0,0.00033706]
[1771664930278,0.07346479,68060.0,68054.0,0.00033706]
[1771664930479,0.0734658,68059.0,68054.0,0.00033706]
[1771664931480,0.09635405,68059.0,68054.0,0.00033706]
[1771664931987,0.0734658,68059.0,68054.0,0.00033706]
[1771664936041,0.07346485,68060.0,68054.0,0.00033706]
[1771664938398,0.07346689,68058.0,68054.0,0.00033706]
[1771664941091,0.0002,68069.0,68056.0,0.05486966]
[1771664941259,0.0002,68069.0,68061.0,0.05362367]
[1771664941410,0.29402096,68069.0,68062.0,0.07309806]
[1771664942218,0.07346002,68065.0,68062.0,0.07309806]
[1771664942684,0.07346283,68062.0,68054.0,0.07380737]
[1771664942823,0.07346168,68063.0,68055.0,0.07309288]
[1771664943652,0.07346168,68063.0,68055.0,0.14656285]
[1771664943857,0.07346168,68063.0,68056.0,0.07310099]
[1771664946786,0.07346168,68063.0,68056.0,0.14656982]
[1771664946987,0.07366168,68063.0,68057.0,0.07307627]
[1771664953431,0.0002,68063.0,68054.0,0.07380773]
[1771664953594,0.0002,68063.0,68056.0,0.00022]
[1771664953780,0.07346251,68062.0,68056.0,0.00022]
[1771664955030,0.07366154,68063.0,68056.0,0.00022]
[1771664955892,0.07365954,68065.0,68057.0,0.07286247]
[1771664956310,0.07365954,68065.0,68057.0,0.07346768]
[1771664956512,0.07365954,68065.0,68058.0,0.07286247]
[1771664959339,0.07346068,68064.0,68058.0,0.07286247]
[1771664962358,0.07346068,68064.0,68058.0,0.07271631]
[1771664963324,0.07346068,68064.0,68056.0,0.07368862]
[1771664963555,0.07346149,68063.0,68056.0,0.00022]
[1771664969294,0.07346149,68063.0,68056.0,0.08401184]
[1771664972707,0.0002,68064.0,68056.0,0.00022]
[1771664972708,0.07346443,68061.0,68056.0,0.00022]
[1771664972919,0.07346473,68060.0,68056.0,0.00022]
[1771664973103,0.07346571,68059.0,68054.0,0.00033706]
[1771664973708,0.07346571,68059.0,68056.0,0.00022]
[1771664975216,0.07346374,68061.0,68047.0,0.08422225]
[1771664975217,0.07347322,68053.0,68047.0,0.00022]
[1771664975535,0.07347733,68049.0,68047.0,0.00031156]
[1771664976119,0.07347527,68051.0,68047.0,0.00031156]
[1771664979990,0.07347398,68052.0,68047.0,0.00031156]
[1771664980564,0.04502162,68056.0,68044.0,0.000124]
[1771664980751,0.07347825,68048.0,68047.0,0.00022]
[1771664980892,0.07347865,68047.0,68044.0,0.00015716]
[1771664981858,0.07347865,68047.0,68042.0,0.00022]
[1771664982159,0.07348152,68045.0,68042.0,0.00022]
[1771664982336,0.07348294,68043.0,68042.0,0.00022]
[1771664984529,0.07347902,68047.0,68042.0,0.00022]
[1771664985139,0.0734804,68046.0,68042.0,0.00022]
[1771664985363,0.07348107,68045.0,68042.0,0.00022]
[1771664989013,0.07348107,68045.0,68040.0,0.00038]
[1771664989406,0.29390388,68050.0,68036.0,0.08461484]
[1771664989407,0.00016,68050.0,68036.0,0.08461484]
[1771664989606,0.07348375,68043.0,68036.0,0.08469525]
[1771664989805,0.07348406,68042.0,68036.0,0.08469525]
[1771664990207,0.29390792,68049.0,68036.0,0.08469525]
[1771664990508,0.07348709,68040.0,68036.0,0.08469525]
[1771664991805,0.07348709,68040.0,68037.0,0.23576]
[1771664993213,0.29391667,68047.0,68037.0,0.23576]
[1771664993366,0.07348797,68039.0,68038.0,0.2358]
[1771664993965,0.07348853,68038.0,68036.0,0.23588041]
[1771664994359,0.07348735,68039.0,68036.0,0.23610041]
[1771664994628,0.07348735,68039.0,68036.0,0.00030041]
[1771664996129,0.07348735,68039.0,68036.0,0.00015433]
[1771664996441,0.07348735,68039.0,68036.0,8.25e-06]
[1771664998554,0.07348627,68040.0,68036.0,8.25e-06]
[1771664999061,0.07348551,68041.0,68036.0,8.25e-06]
[1771664999355,0.07348648,68040.0,68036.0,8.25e-06]
[1771665001994,0.07368648,68040.0,68036.0,8.25e-06]
[1771665002943,0.07348742,68039.0,68036.0,8.25e-06]
[1771665003725,0.00016,68050.0,68036.0,8.25e-06]
[1771665003895,0.00016,68050.0,68038.0,0.08487662]
[1771665004295,0.07348415,68042.0,68038.0,0.08487662]
[1771665004502,0.0734851,68041.0,68038.0,0.08487662]
[1771665004704,0.07348415,68042.0,68038.0,0.08487662]
[1771665005275,0.0734815,68045.0,68038.0,0.08487662]
[1771665005479,0.00016,68050.0,68037.0,0.04757528]
[1771665005837,0.29390774,68049.0,68038.0,0.08487662]
[1771665005986,0.073482,68044.0,68038.0,0.08487662]
[1771665006188,0.073482,68044.0,68038.0,0.07047662]
[1771665007131,0.00016,68050.0,68038.0,0.07348834]
[1771665007287,0.0002,68064.0,68048.0,0.07347682]
[1771665007288,0.00016,68060.0,68048.0,0.07347682]
[1771665007494,0.07346908,68056.0,68049.0,0.07763123]
[1771665007690,0.00016,68060.0,68040.0,0.02321378]
[1771665007691,0.0002,68064.0,68055.0,0.07763123]
[1771665007692,0.07346224,68063.0,68055.0,0.07763123]
[1771665007905,0.04741927,68062.0,68051.0,0.07671402]
[1771665008102,0.07346474,68060.0,68051.0,0.07671402]
[1771665008500,0.07346645,68059.0,68051.0,0.07671402]
[1771665008704,0.29404375,68064.0,68056.0,0.07671402]
[1771665008705,0.0002,68064.0,68056.0,0.07671402]
[1771665008918,0.0002,68064.0,68056.0,0.07346869]
[1771665009184,0.0002,68064.0,68057.0,0.07671402]
[1771665009437,0.07366045,68064.0,68057.0,0.07671402]
[1771665010031,0.06573388,68064.0,68055.0,0.07346923]
[1771665010231,0.06517646,68064.0,68056.0,0.07775212]
[1771665010408,0.0652935,68064.0,68056.0,0.07346881]
[1771665010610,0.00011704,68064.0,68057.0,0.07775212]
[1771665012304,0.07365967,68065.0,68056.0,0.07346881]
[1771665012507,0.06799494,68065.0,68057.0,0.07813324]
[1771665013036,0.07345917,68066.0,68057.0,0.07813324]
[1771665013555,0.07345917,68066.0,68058.0,0.07813324]
[1771665013709,0.07345927,68065.0,68058.0,0.07813324]
[1771665014886,0.07345833,68066.0,68058.0,0.07813324]
[1771665015065,0.05036922,68079.0,68060.0,0.00016]
[1771665015368,0.07345247,68072.0,68064.0,0.07808027]
[1771665016574,0.07345312,68071.0,68064.0,0.07808027]
[1771665017168,0.06379225,68071.0,68064.0,0.07802266]
[1771665017329,0.06128448,68071.0,68063.0,0.07346041]
[1771665017532,0.07345247,68072.0,68064.0,0.07802266]
[1771665018692,0.0734529,68071.0,68064.0,0.07802266]
[1771665022245,0.0736529,68071.0,68064.0,0.07802266]
[1771665023192,0.0002,68071.0,68064.0,0.07346001]
[1771665023397,0.0002,68071.0,68065.0,0.07932274]
[1771665023920,0.07365275,68071.0,68065.0,0.07932274]
[1771665029127,0.07345385,68070.0,68065.0,0.07932274]
[1771665029335,0.07345509,68069.0,68065.0,0.07932274]
[1771665033599,0.07345676,68068.0,68065.0,0.07932274]
[1771665033769,0.05288295,68067.0,68064.0,0.00022]
[1771665033943,0.0734572,68067.0,68060.0,0.07362454]
[1771665034144,0.0734572,68067.0,68060.0,0.1637111]
[1771665034379,0.0734572,68067.0,68061.0,0.09008656]
[1771665034596,0.07345613,68068.0,68061.0,0.09008656]
[1771665035793,0.07345613,68068.0,68064.0,0.00022]
[1771665035995,0.07345613,68068.0,68064.0,0.09027992]
[1771665043421,0.0002,68071.0,68064.0,0.09027992]
[1771665043629,0.07365291,68071.0,68064.0,0.09027992]
[1771665044971,0.07345452,68070.0,68064.0,0.09027992]
[1771665048539,0.07365452,68070.0,68064.0,0.09027992]
[1771665051650,0.07345519,68069.0,68064.0,0.09027992]
[1771665051850,0.07345606,68068.0,68064.0,0.09027992]
[1771665052045,0.07345528,68069.0,68064.0,0.09027992]
[1771665062081,0.07345528,68069.0,68064.0,0.05296748]
[1771665062284,0.07345528,68069.0,68064.0,0.04604161]
[1771665064294,0.13487338,68069.0,68061.0,0.07346323]
[1771665064741,0.13487338,68069.0,68061.0,0.14353706]
[1771665065689,0.13487338,68069.0,68061.0,0.07346323]
[1771665065842,0.13487338,68069.0,68061.0,0.14353706]
[1771665066517,0.13487338,68069.0,68061.0,0.07346323]
[1771665066676,0.13487338,68069.0,68061.0,0.14934324]
[1771665067044,0.13487338,68069.0,68061.0,0.07588001]
[1771665067697,0.13487338,68069.0,68061.0,0.07610001]
[1771665067904,0.13487338,68069.0,68061.0,0.1495634]
[1771665069301,0.07345528,68069.0,68061.0,0.07368339]
[1771665069510,0.07345528,68069.0,68062.0,0.07584301]
[1771665069706,0.14173013,68068.0,68061.0,0.00022]
[1771665070700,0.14173013,68068.0,68061.0,0.0760629]
[1771665071099,0.07345595,68068.0,68061.0,0.0760629]
[1771665071482,0.07345528,68069.0,68061.0,0.0760629]
[1771665072312,0.07345528,68069.0,68061.0,0.14952634]
[1771665074078,0.07345528,68069.0,68061.0,0.14938063]
[1771665075507,0.07365528,68069.0,68061.0,0.14938063]
[1771665076700,0.06827418,68068.0,68061.0,0.07353773]
[1771665079742,0.06827418,68068.0,68061.0,7.429e-05]
[1771665079924,0.07345719,68067.0,68061.0,7.429e-05]
[1771665080441,0.14173038,68068.0,68061.0,7.429e-05]
[1771665086815,0.07345705,68067.0,68061.0,7.429e-05]
[1771665088998,0.07346013,68065.0,68058.0,0.07578092]
[1771665094368,0.07346013,68065.0,68058.0,0.07563521]
[1771665095242,0.07346013,68065.0,68058.0,0.07585521]
[1771665096078,0.07346013,68065.0,68053.0,0.29388718]
[1771665096079,0.06827418,68061.0,68050.0,0.00038]
[1771665096231,0.07346578,68059.0,68051.0,0.07381809]
[1771665099639,0.07346672,68060.0,68051.0,0.07381809]
[1771665100002,0.06839135,68061.0,68051.0,0.000344]
[1771665100199,0.00011717,68061.0,68051.0,0.000344]
[1771665100386,0.00011717,68061.0,68051.0,0.0759748]
[1771665100886,0.07339994,68062.0,68054.0,0.07347087]
[1771665101215,0.07339994,68062.0,68054.0,0.07358804]
[1771665102090,0.0734636,68061.0,68054.0,0.00011717]
[1771665102653,0.0736636,68061.0,68054.0,0.00011717]
[1771665104822,0.07346462,68060.0,68054.0,0.00011717]
[1771665105009,0.0736636,68061.0,68054.0,0.00011717]
[1771665108676,0.0736636,68061.0,68053.0,0.07344351]
[1771665108879,0.07378077,68061.0,68053.0,0.07344351]
[1771665109114,0.07504747,68066.0,68057.0,0.073467]
[1771665109323,0.07345818,68066.0,68058.0,0.0734666]
[1771665109472,0.07345818,68066.0,68059.0,0.07541486]
[1771665110606,0.0002,68068.0,68064.0,0.07537692]
[1771665110800,0.00036,68070.0,68064.0,0.07537692]
[1771665111152,0.07381416,68070.0,68064.0,0.07537692]
[1771665116327,0.07365489,68069.0,68064.0,0.07537692]
[1771665119761,0.07365489,68069.0,68061.0,0.07346282]
[1771665120558,0.0734567,68068.0,68060.0,0.14976388]
[1771665120763,0.0734567,68068.0,68060.0,0.07630137]
[1771665121595,0.07345734,68067.0,68060.0,0.07630137]
[1771665122152,0.0734567,68068.0,68060.0,0.07630137]
[1771665122353,0.07345823,68066.0,68060.0,0.07630137]
[1771665123958,0.07345823,68066.0,68060.0,0.07615566]
[1771665127315,0.07345823,68066.0,68060.0,0.07637566]
[1771665131384,0.07345715,68067.0,68060.0,0.07637566]
[1771665140954,0.07365715,68067.0,68060.0,0.07637566]
[1771665144266,0.07345829,68066.0,68060.0,0.00022]
[1771665144470,0.07345945,68065.0,68060.0,0.00022]
[1771665144632,0.07365807,68067.0,68060.0,0.00022]
[1771665145134,0.0734587,68066.0,68060.0,0.00022]
[1771665145562,0.07365807,68067.0,68060.0,0.00022]
[1771665147383,0.0002,68066.0,68060.0,0.00022]
[1771665147677,0.07365812,68066.0,68060.0,0.00022]
[1771665150685,0.0734593,68065.0,68060.0,0.00022]
[1771665150988,0.0734593,68065.0,68060.0,0.0884294]
[1771665151558,0.07346096,68064.0,68060.0,0.0884294]
[1771665152200,0.07345939,68065.0,68060.0,0.0884294]
[1771665155841,0.07345939,68065.0,68060.0,0.00022]
[1771665157349,0.07345939,68065.0,68061.0,0.08815059]
[1771665162801,0.07345939,68065.0,68060.0,0.00022]
[1771665166578,0.07365939,68065.0,68060.0,0.00022]
[1771665171331,0.07365939,68065.0,68060.0,0.08828426]
[1771665181628,0.07346095,68064.0,68058.0,0.00011717]
[1771665181774,0.07346095,68064.0,68056.0,0.07346883]
[1771665181974,0.07357812,68064.0,68056.0,0.07346883]
[1771665182229,0.07346332,68062.0,68053.0,0.14802]
[1771665182530,0.07346332,68062.0,68054.0,0.07347072]
[1771665182843,0.07346337,68063.0,68055.0,0.07346984]
[1771665183179,0.0002,68065.0,68054.0,0.07672763]
[1771665183346,0.07365968,68065.0,68056.0,0.07346861]
[1771665183527,0.07365968,68065.0,68057.0,0.08798299]
[1771665185567,0.07365968,68065.0,68057.0,0.1614507]
[1771665185735,0.07365968,68065.0,68058.0,0.08795522]
[1771665192615,0.07365968,68065.0,68058.0,0.08817522]
[1771665200505,0.07365968,68065.0,68058.0,0.08802959]
[1771665203482,0.07365968,68065.0,68058.0,0.16149619]